bitfinex-derivatives/quotes_BTCF0:USTF0_20250915
["timestamp","ask_amount","ask_price","bid_price","bid_amount"]
[1757950515106,0.28771,114560.0,114550.0,0.41981703]
[1757950515300,0.63367703,114560.0,114550.0,0.41981703]
[1757950516098,0.28771,114560.0,114550.0,0.41981703]
[1757950516303,0.63367703,114560.0,114550.0,0.41981703]
[1757950517010,0.03771,114560.0,114550.0,0.41981703]
[1757950517207,0.03971,114560.0,114550.0,0.41981703]
[1757950517705,0.38567703,114560.0,114550.0,0.41981703]
[1757950517909,0.03971,114560.0,114550.0,0.41981703]
[1757950519112,0.03971,114560.0,114550.0,0.07385]
[1757950519305,0.03971,114560.0,114550.0,0.41981703]
[1757950519808,0.005,114560.0,114550.0,1.01578406]
[1757950519998,0.005,114560.0,114550.0,1.37658406]
[1757950520201,0.01854,114560.0,114550.0,1.37658406]
[1757950520611,0.01854,114560.0,114550.0,2.24674406]
[1757950521607,0.01854,114560.0,114550.0,1.90057703]
[1757950521810,0.01854,114560.0,114550.0,1.03061703]
[1757950522005,0.01854,114560.0,114550.0,1.90009703]
[1757950522209,0.01854,114560.0,114550.0,1.55413]
[1757950522413,0.01854,114560.0,114550.0,1.90009703]
[1757950523316,0.005,114560.0,114550.0,2.24606406]
[1757950523611,0.005,114560.0,114550.0,2.49606406]
[1757950524818,0.005,114560.0,114550.0,2.50472901]
[1757950525516,0.005,114560.0,114550.0,2.85069604]
[1757950525717,0.005,114560.0,114550.0,2.50472901]
[1757950527414,0.005,114560.0,114550.0,1.81279495]
[1757950527616,0.005,114560.0,114550.0,2.50472901]
[1757950528319,0.0001,114570.0,114560.0,0.02572]
[1757950528516,0.01364,114580.0,114560.0,1.73442109]
[1757950528814,0.03532,114580.0,114570.0,1.94157406]
[1757950529116,0.03532,114580.0,114570.0,2.25157406]
[1757950529716,0.03832,114580.0,114570.0,1.90521189]
[1757950530114,0.03832,114580.0,114570.0,2.25078378]
[1757950530315,0.03532,114580.0,114570.0,2.25078378]
[1757950530512,0.04232,114580.0,114570.0,0.69452]
[1757950530712,0.04232,114580.0,114570.0,1.90601189]
[1757950530919,0.007,114580.0,114570.0,1.91853189]
[1757950531519,0.007,114580.0,114570.0,2.26410378]
[1757950535418,0.007,114580.0,114570.0,2.26262378]
[1757950536627,0.007,114580.0,114570.0,2.59987478]
[1757950537016,0.0001,114590.0,114580.0,0.72201378]
[1757950537310,0.01773544,114600.0,114580.0,1.91068189]
[1757950537514,0.01763544,114600.0,114590.0,0.72809189]
[1757950537710,0.01763544,114600.0,114590.0,1.04809189]
[1757950537929,0.0001,114610.0,114600.0,0.02572]
[1757950538111,0.01336,114620.0,114600.0,2.25058378]
[1757950538423,0.03504,114620.0,114610.0,0.36729189]
[1757950538623,0.03504,114620.0,114610.0,1.23021189]
[1757950539016,0.03504,114620.0,114610.0,1.59101189]
[1757950539216,0.03504,114620.0,114610.0,0.72809189]
[1757950539519,0.03504,114620.0,114610.0,1.59049189]
[1757950539912,0.03804,114620.0,114610.0,1.59049189]
[1757950540319,0.04204,114620.0,114610.0,1.59013189]
[1757950541122,0.007,114620.0,114610.0,1.60265189]
[1757950541327,0.007,114620.0,114610.0,1.61153419]
[1757950541518,0.007,114620.0,114610.0,0.74949419]
[1757950541821,0.04204,114620.0,114610.0,1.59841419]
[1757950542019,0.04204,114620.0,114610.0,1.2528423]
[1757950542214,0.04204,114620.0,114610.0,1.59841419]
[1757950544427,0.04204,114620.0,114610.0,1.59785419]
[1757950545129,0.007,114620.0,114610.0,1.64785419]
[1757950545624,0.02026,114620.0,114610.0,1.63845189]
[1757950545929,0.04204,114620.0,114610.0,1.63845189]
[1757950546227,0.04004,114620.0,114610.0,1.63845189]
[1757950546426,0.03904,114620.0,114610.0,1.63845189]
[1757950546626,0.03904,114620.0,114610.0,1.64701457]
[1757950547025,0.03904,114620.0,114610.0,1.63845189]
[1757950547522,0.03904,114620.0,114610.0,0.77809189]
[1757950547722,0.39984,114620.0,114610.0,0.02172]
[1757950547929,0.03504,114610.0,114600.0,0.09128839]
[1757950548131,0.03504,114610.0,114600.0,1.60598028]
[1757950549221,0.03704,114610.0,114600.0,1.60598028]
[1757950549427,0.03804,114610.0,114600.0,1.60598028]
[1757950551524,0.03804,114610.0,114600.0,1.26040839]
[1757950551934,0.03804,114610.0,114600.0,1.60598028]
[1757950552632,0.03804,114610.0,114600.0,0.92744839]
[1757950552827,0.03504,114600.0,114590.0,0.38272]
[1757950553031,0.03511,114590.0,114580.0,0.40365281]
[1757950553223,0.38068189,114590.0,114580.0,0.90361281]
[1757950553429,0.74148189,114590.0,114580.0,0.88092281]
[1757950553629,0.76332177,114590.0,114580.0,0.88092281]
[1757950553831,1.01332177,114590.0,114580.0,0.88092281]
[1757950554032,0.01275,114580.0,114570.0,0.0002]
[1757950554328,0.40252314,114580.0,114570.0,0.86052]
[1757950554533,0.05695125,114580.0,114570.0,0.88321]
[1757950555030,0.05595125,114580.0,114570.0,0.88321]
[1757950555733,0.05595125,114580.0,114570.0,0.88621]
[1757950557833,0.05595125,114580.0,114570.0,1.23178189]
[1757950558225,0.03411,114580.0,114570.0,1.23178189]
[1757950558838,0.0559791,114580.0,114570.0,1.23178189]
[1757950559324,0.03411,114580.0,114570.0,1.23178189]
[1757950562035,0.39118743,114590.0,114570.0,2.48067378]
[1757950562237,0.43399323,114590.0,114580.0,0.36789189]
[1757950562843,0.43399323,114590.0,114580.0,0.64789189]
[1757950563139,0.01753743,114590.0,114580.0,1.26784189]
[1757950563744,0.01753743,114590.0,114580.0,1.30784189]
[1757950563947,0.01753743,114590.0,114580.0,1.03784189]
[1757950564441,0.01753743,114590.0,114580.0,0.98884189]
[1757950564642,0.01753743,114590.0,114580.0,1.02884189]
[1757950564841,0.01853743,114590.0,114580.0,1.28884189]
[1757950566636,0.001,114590.0,114580.0,1.28884189]
[1757950567037,0.001,114590.0,114580.0,1.37608629]
[1757950567338,0.001,114590.0,114580.0,1.72165818]
[1757950567541,0.0001,114600.0,114590.0,0.71846378]
[1757950567742,0.0001,114610.0,114590.0,2.00093154]
[1757950567942,0.39172254,114620.0,114590.0,2.00093154]
[1757950567943,0.41286254,114620.0,114610.0,0.02232]
[1757950568243,0.41276254,114620.0,114610.0,1.22549189]
[1757950568637,0.05196254,114620.0,114610.0,1.22549189]
[1757950569243,0.05496254,114620.0,114610.0,1.22549189]
[1757950569633,0.05496254,114620.0,114610.0,0.87988]
[1757950570139,0.05496254,114620.0,114610.0,1.22545189]
[1757950570642,0.05496254,114620.0,114610.0,1.22541189]
[1757950570842,0.41576254,114620.0,114610.0,1.22541189]
[1757950571042,0.41776254,114620.0,114610.0,1.22541189]
[1757950571247,1.01333443,114620.0,114610.0,0.85752]
[1757950571438,0.03418,114610.0,114600.0,0.88004]
[1757950571638,0.03418,114610.0,114600.0,1.19984]
[1757950572139,0.03418,114610.0,114600.0,1.54541189]
[1757950572335,0.39498,114610.0,114600.0,0.36789189]
[1757950572537,0.99255189,114610.0,114600.0,0.85748]
[1757950573346,0.64698,114610.0,114600.0,0.85748]
[1757950573547,0.66887508,114610.0,114600.0,0.85748]
[1757950574447,0.66887508,114610.0,114590.0,1.22353396]
[1757950574652,0.01314,114600.0,114590.0,1.27343396]
[1757950574945,0.01314,114600.0,114590.0,1.27333396]
[1757950576146,0.39608,114610.0,114600.0,0.02232]
[1757950576348,0.39598,114610.0,114600.0,0.36789189]
[1757950577849,0.03418,114610.0,114600.0,0.36789189]
[1757950578049,0.03518,114610.0,114600.0,0.36789189]
[1757950578951,0.03718,114610.0,114600.0,0.36789189]
[1757950581153,0.03718,114610.0,114600.0,0.02232]
[1757950581549,0.03718,114610.0,114600.0,0.36789189]
[1757950583751,0.02404,114610.0,114600.0,0.61789189]
[1757950583954,0.003,114610.0,114600.0,0.88704189]
[1757950584350,0.003,114610.0,114600.0,1.59341378]
[1757950587954,0.003,114610.0,114600.0,1.75939]
[1757950588158,0.003,114610.0,114600.0,1.59341378]
[1757950588353,0.02433,114610.0,114600.0,1.75927]
[1757950588556,0.003,114610.0,114600.0,2.45041378]
[1757950588757,0.002,114610.0,114600.0,2.45041378]
[1757950588959,0.002,114610.0,114600.0,2.45241378]
[1757950589260,0.002,114610.0,114600.0,1.59541378]
[1757950589462,0.002,114610.0,114600.0,2.45237378]
[1757950590162,0.03118254,114620.0,114600.0,2.45237378]
[1757950590362,0.05241254,114620.0,114610.0,0.72761189]
[1757950590559,0.05241254,114620.0,114610.0,1.00761189]
[1757950590759,0.05241254,114620.0,114610.0,1.86453189]
[1757950590959,0.05241254,114620.0,114610.0,0.66204]
[1757950591163,0.05241254,114620.0,114610.0,1.86453189]
[1757950591454,0.05241254,114620.0,114610.0,1.86549189]
[1757950591766,0.05241254,114620.0,114610.0,1.86530105]
[1757950592956,0.05241254,114620.0,114610.0,1.00842105]
[1757950593157,0.05241254,114620.0,114610.0,1.86530105]
[1757950593555,0.05241254,114620.0,114610.0,2.2106821]
[1757950593556,0.03911254,114620.0,114610.0,2.2106821]
[1757950594161,0.01778254,114620.0,114610.0,2.2106821]
[1757950596361,0.01778254,114620.0,114610.0,2.21933361]
[1757950597768,0.01324,114630.0,114610.0,2.21933361]
[1757950597971,0.03447,114630.0,114620.0,0.87788]
[1757950598166,0.03447,114630.0,114620.0,1.5886421]
[1757950600263,0.80708,114640.0,114620.0,1.5886421]
[1757950600264,0.39150379,114640.0,114620.0,1.5936421]
[1757950600564,0.43474746,114640.0,114630.0,0.36662105]
[1757950600863,0.43474746,114640.0,114630.0,0.38662105]
[1757950601270,0.43474746,114640.0,114630.0,0.04124]
[1757950601571,0.43474746,114640.0,114630.0,0.38662105]
[1757950602070,0.43574746,114640.0,114630.0,0.38662105]
[1757950602471,0.07494746,114640.0,114630.0,0.38662105]
[1757950602667,0.05393379,114640.0,114630.0,0.38662105]
[1757950603076,0.07594979,114640.0,114630.0,0.38662105]
[1757950603374,0.07694979,114640.0,114630.0,0.38662105]
[1757950604074,0.05493379,114640.0,114630.0,0.38662105]
[1757950604273,0.07695124,114640.0,114630.0,0.38662105]
[1757950605177,0.07695124,114640.0,114630.0,0.04124]
[1757950605373,0.07695124,114640.0,114630.0,0.38662105]
[1757950605573,0.07695124,114640.0,114630.0,0.04124]
[1757950605876,0.07695124,114640.0,114630.0,0.38662105]
[1757950608475,0.07695124,114640.0,114630.0,0.36662105]
[1757950608775,0.07695124,114640.0,114630.0,1.22286105]
[1757950615876,0.07695124,114640.0,114630.0,1.5682421]
[1757950616179,0.07695124,114640.0,114630.0,1.22286105]
[1757950616477,0.07695124,114640.0,114630.0,1.5682421]
[1757950617176,0.07695124,114640.0,114630.0,1.22286105]
[1757950617578,0.07695124,114640.0,114630.0,1.5682421]
[1757950618277,0.07695124,114640.0,114630.0,1.22286105]
[1757950620573,0.06381124,114640.0,114630.0,1.5682421]
[1757950621475,0.04248124,114640.0,114630.0,1.9790421]
[1757950621678,0.02046379,114640.0,114630.0,2.4990421]
[1757950621877,0.02046379,114640.0,114630.0,2.56745753]
[1757950622471,0.0031,114640.0,114630.0,2.56745753]
[1757950623079,0.0031,114640.0,114630.0,2.65466433]
[1757950623579,0.0031,114640.0,114630.0,3.00004538]
[1757950624082,0.0031,114640.0,114630.0,2.05659858]
[1757950624276,0.0031,114640.0,114630.0,2.91207858]
[1757950624576,0.0031,114640.0,114630.0,2.99928538]
[1757950626177,0.04425542,114690.0,114660.0,0.02736]
[1757950626477,0.01308,114700.0,114680.0,1.42882315]
[1757950626677,0.03529,114700.0,114690.0,1.9293021]
[1757950626878,0.03529,114700.0,114690.0,1.9292621]
[1757950627077,0.37388,114710.0,114690.0,1.9292621]
[1757950627276,0.39609,114710.0,114700.0,0.7132221]
[1757950627579,0.39609,114710.0,114700.0,0.8777]
[1757950627780,0.39609,114710.0,114700.0,1.5684221]
[1757950627979,0.39609,114710.0,114700.0,0.87766]
[1757950628179,0.39609,114710.0,114700.0,1.5684221]
[1757950628481,0.39909,114710.0,114700.0,1.5684221]
[1757950628781,0.03829,114710.0,114700.0,1.5684221]
[1757950629482,0.04029,114710.0,114700.0,1.6395844]
[1757950629877,0.03729,114710.0,114700.0,1.6395844]
[1757950630074,0.03929,114710.0,114700.0,1.6395844]
[1757950630583,0.03929,114710.0,114700.0,0.0936223]
[1757950630776,0.03929,114710.0,114700.0,0.7843844]
[1757950630983,0.03929,114710.0,114700.0,1.6393044]
[1757950631682,0.03929,114710.0,114700.0,0.7843844]
[1757950631879,0.03929,114710.0,114700.0,1.6392244]
[1757950632875,0.01318,114730.0,114710.0,0.00915]
[1757950633080,0.01318,114730.0,114720.0,1.5680221]
[1757950633081,0.03529,114730.0,114720.0,1.5680221]
[1757950634687,0.03629,114730.0,114720.0,1.5680221]
[1757950635085,0.03629,114730.0,114720.0,0.7132221]
[1757950635384,0.39709,114730.0,114720.0,1.5678621]
[1757950635581,0.001,114730.0,114720.0,1.92266315]
[1757950635890,0.002,114730.0,114720.0,1.92266315]
[1757950636280,0.002,114730.0,114720.0,2.28346315]
[1757950636777,0.002,114730.0,114720.0,2.33346315]
[1757950638282,0.002,114730.0,114720.0,2.60346315]
[1757950638784,0.002,114730.0,114720.0,2.85346315]
[1757950640085,0.002,114730.0,114720.0,2.85306315]
[1757950641184,0.002,114730.0,114720.0,1.99882315]
[1757950641388,0.01508,114730.0,114720.0,1.73940315]
[1757950641589,0.64809,114730.0,114720.0,0.02246]
[1757950641791,0.64809,114730.0,114720.0,1.5673421]
[1757950642188,0.64809,114730.0,114720.0,0.87658]
[1757950642383,0.64809,114730.0,114720.0,1.5673421]
[1757950642592,0.64809,114730.0,114720.0,0.7132221]
[1757950642790,0.64809,114730.0,114720.0,1.5672621]
[1757950643786,0.64809,114730.0,114720.0,0.8765]
[1757950644086,0.64809,114730.0,114720.0,1.5672621]
[1757950644590,0.64709,114730.0,114720.0,1.5672621]
[1757950644896,0.64709,114730.0,114720.0,1.91264315]
[1757950645291,0.001,114730.0,114720.0,2.28286315]
[1757950645888,0.01318,114740.0,114720.0,2.28386315]
[1757950646088,0.39619,114740.0,114730.0,0.7124021]
[1757950646283,0.39609,114740.0,114730.0,0.7124021]
[1757950647286,0.39609,114740.0,114730.0,0.02164]
[1757950647492,0.39609,114740.0,114730.0,0.7124021]
[1757950648400,0.39709,114740.0,114730.0,0.7124021]
[1757950648598,0.39709,114740.0,114730.0,0.02164]
[1757950648899,0.39709,114740.0,114730.0,0.7124021]
[1757950649993,0.39709,114740.0,114730.0,1.5671221]
[1757950650294,0.39609,114740.0,114730.0,1.5671221]
[1757950651193,0.41806071,114740.0,114730.0,1.5671221]
[1757950652092,0.41806071,114740.0,114730.0,1.22166105]
[1757950653798,0.41806071,114740.0,114730.0,1.22092874]
[1757950654996,0.41806071,114740.0,114730.0,1.22084874]
[1757950655498,0.41806071,114740.0,114730.0,1.22076874]
[1757950656198,0.44923613,114740.0,114730.0,1.22076874]
[1757950656395,0.44923613,114740.0,114730.0,0.36728874]
[1757950656596,0.44923613,114740.0,114730.0,1.22072874]
[1757950659200,0.44923613,114740.0,114730.0,0.87608]
[1757950659400,0.44923613,114740.0,114730.0,1.22072874]
[1757950662300,0.49601959,114740.0,114730.0,1.22072874]
[1757950663917,0.44923613,114740.0,114730.0,1.22072874]
[1757950664620,0.44923613,114740.0,114730.0,1.22048874]
[1757950668814,0.49601959,114740.0,114730.0,1.22048874]
[1757950670512,0.46484417,114740.0,114730.0,1.22048874]
[1757950672019,0.05322374,114740.0,114730.0,1.22963874]
[1757950672221,0.05322374,114740.0,114730.0,1.47963874]
[1757950672417,0.03125303,114740.0,114730.0,2.13043874]
[1757950672627,0.02197071,114740.0,114730.0,2.13043874]
[1757950673119,0.02197071,114740.0,114730.0,2.13897809]
[1757950673319,0.08408193,114750.0,114730.0,2.13897809]
[1757950673519,0.10707193,114750.0,114740.0,0.72713874]
[1757950673711,0.10697193,114750.0,114740.0,0.72713874]
[1757950674413,0.10697193,114750.0,114740.0,0.79714035]
[1757950674612,0.09389193,114750.0,114740.0,0.79814035]
[1757950674825,0.0396489,114750.0,114740.0,0.80304035]
[1757950675028,0.4368789,114750.0,114740.0,0.43734035]
[1757950675220,1.06278067,114750.0,114740.0,0.85376]
[1757950675722,0.71813193,114750.0,114740.0,0.02269]
[1757950676027,0.71813193,114750.0,114740.0,0.36733874]
[1757950676527,0.46913193,114750.0,114740.0,0.36733874]
[1757950677224,0.4378789,114750.0,114740.0,0.38733874]
[1757950679529,0.4378789,114750.0,114740.0,1.23989874]
[1757950680236,0.4378789,114750.0,114740.0,0.89525]
[1757950680528,0.4378789,114750.0,114740.0,1.30865978]
[1757950680717,0.41590819,114750.0,114740.0,1.30865978]
[1757950681022,0.43753549,114750.0,114740.0,1.30865978]
[1757950681326,0.4198573,114750.0,114740.0,0.96401104]
[1757950681525,0.4198573,114750.0,114740.0,1.30865978]
[1757950681928,0.4198573,114750.0,114740.0,0.96401104]
[1757950682223,0.4198573,114750.0,114740.0,1.30865978]
[1757950683626,0.4198573,114750.0,114740.0,0.96401104]
[1757950683828,0.4198573,114750.0,114740.0,1.30865978]
[1757950684015,0.4198573,114750.0,114740.0,1.30841978]
[1757950684529,0.4198573,114750.0,114740.0,1.28833978]
[1757950686928,0.0590573,114750.0,114740.0,1.28833978]
[1757950687733,0.001,114750.0,114740.0,1.65403978]
[1757950687927,0.001,114750.0,114740.0,1.67409822]
[1757950692132,0.001,114750.0,114740.0,1.69409822]
[1757950692624,0.001,114750.0,114740.0,2.09122142]
[1757950692826,0.001,114750.0,114740.0,2.43587016]
[1757950693030,0.001,114750.0,114740.0,2.68587016]
[1757950694330,0.001,114750.0,114740.0,1.74650696]
[1757950694526,0.001,114750.0,114740.0,1.05720948]
[1757950694832,0.01455,114750.0,114740.0,1.39695822]
[1757950695028,0.01455,114750.0,114740.0,1.14695822]
[1757950695226,0.01455,114750.0,114740.0,1.99851822]
[1757950698729,0.001,114750.0,114740.0,1.99851822]
[1757950699728,0.01455,114750.0,114740.0,1.99851822]
[1757950700432,0.01455,114750.0,114740.0,1.14695822]
[1757950700736,0.01455,114750.0,114740.0,1.99823822]
[1757950701436,0.01455,114750.0,114740.0,1.66823822]
[1757950703239,0.001,114750.0,114740.0,1.66823822]
[1757950704547,0.001,114750.0,114740.0,2.66001016]
[1757950707427,0.001,114750.0,114740.0,1.97027268]
[1757950707631,0.001,114750.0,114740.0,2.65957016]
[1757950708140,0.001,114750.0,114740.0,1.80873016]
[1757950708435,0.001,114750.0,114740.0,2.65941016]
[1757950711035,0.001,114750.0,114740.0,2.40941016]
[1757950711236,0.0001,114760.0,114750.0,0.1196956]
[1757950711442,0.0001,114770.0,114750.0,1.47979308]
[1757950711742,0.02284,114770.0,114760.0,1.57904874]
[1757950711931,0.02274,114770.0,114760.0,1.88904874]
[1757950712132,0.03596,114770.0,114760.0,1.88904874]
[1757950712439,0.03596,114770.0,114760.0,1.03860874]
[1757950712744,0.03596,114770.0,114760.0,1.88892874]
[1757950713243,0.03596,114770.0,114760.0,1.88888874]
[1757950713440,0.03696,114770.0,114760.0,1.88888874]
[1757950714340,0.03796,114770.0,114760.0,0.69396]
[1757950714641,0.03796,114770.0,114760.0,1.88884874]
[1757950714642,0.28796,114770.0,114760.0,1.88884874]
[1757950715736,0.28796,114770.0,114760.0,1.38290488]
[1757950716646,0.28796,114770.0,114760.0,0.69396]
[1757950716844,0.28796,114770.0,114760.0,1.38290488]
[1757950717038,0.28796,114770.0,114760.0,1.03843244]
[1757950717248,0.28796,114770.0,114760.0,1.38290488]
[1757950717945,0.28796,114770.0,114760.0,0.76210488]
[1757950719242,0.03796,114770.0,114760.0,0.76210488]
[1757950720049,0.002,114770.0,114760.0,0.71210488]
[1757950720253,0.002,114770.0,114760.0,1.02210488]
[1757950723151,0.002,114770.0,114760.0,1.38290488]
[1757950723545,0.01522,114770.0,114760.0,1.38290488]
[1757950723847,0.01522,114770.0,114760.0,2.23242488]
[1757950724245,0.01522,114770.0,114760.0,1.87162488]
[1757950726050,0.01522,114770.0,114760.0,1.02210488]
[1757950726253,0.01522,114770.0,114760.0,1.87146488]
[1757950727552,0.01522,114770.0,114760.0,1.02210488]
[1757950727849,0.01522,114770.0,114760.0,1.87138488]
[1757950728255,0.38243244,114770.0,114760.0,1.21687244]
[1757950728454,0.03796,114770.0,114760.0,1.21687244]
[1757950728655,0.03796,114770.0,114760.0,0.8724]
[1757950728855,0.76492931,114770.0,114760.0,1.21687244]
[1757950729059,0.76492931,114770.0,114760.0,1.21675244]
[1757950729354,0.99323244,114770.0,114760.0,1.21675244]
[1757950729556,1.01493038,114770.0,114760.0,1.21675244]
[1757950729951,1.01493038,114770.0,114760.0,0.87228]
[1757950730152,1.01493038,114770.0,114760.0,1.21675244]
[1757950732756,0.67045794,114770.0,114760.0,0.87228]
[1757950732956,1.01493038,114770.0,114760.0,1.21675244]
[1757950733258,1.01493038,114770.0,114760.0,0.87228]
[1757950733554,1.01493038,114770.0,114760.0,1.21675244]
[1757950734358,1.01493038,114770.0,114760.0,1.56122488]
[1757950735062,0.42045794,114770.0,114760.0,1.56122488]
[1757950736050,0.42047603,114770.0,114760.0,1.57064488]
[1757950736356,0.42047609,114770.0,114760.0,1.57064488]
[1757950736758,0.39876,114770.0,114760.0,1.57064488]
[1757950736963,0.03796,114770.0,114760.0,1.77064488]
[1757950737653,0.02474,114770.0,114760.0,1.77064488]
[1757950738557,0.002,114770.0,114760.0,2.74633727]
[1757950739963,0.002,114770.0,114760.0,2.83344517]
[1757950741559,0.002,114770.0,114760.0,1.89721727]
[1757950741759,0.002,114770.0,114760.0,2.74549727]
[1757950742064,0.002,114770.0,114760.0,1.89721727]
[1757950742364,0.002,114770.0,114760.0,2.74537727]
[1757950742761,0.002,114770.0,114760.0,2.83248517]
[1757950744465,0.002,114770.0,114760.0,2.83224517]
[1757950745370,0.002,114770.0,114760.0,0.86379995]
[1757950745676,0.002,114770.0,114760.0,2.74501727]
[1757950745966,0.001,114770.0,114760.0,2.83212517]
[1757950746167,0.0001,114780.0,114770.0,0.02629]
[1757950746470,0.37445,114790.0,114770.0,2.24379488]
[1757950746675,0.39643,114790.0,114780.0,0.71033488]
[1757950746866,0.39633,114790.0,114780.0,0.71033488]
[1757950747373,0.64633,114790.0,114780.0,0.71033488]
[1757950747967,0.64633,114790.0,114780.0,1.55797488]
[1757950749070,0.64733,114790.0,114780.0,1.55797488]
[1757950749272,0.64833,114790.0,114780.0,1.55797488]
[1757950750575,0.64833,114790.0,114780.0,1.62903199]
[1757950751977,0.39833,114790.0,114780.0,1.62903199]
[1757950752179,0.3628,114790.0,114780.0,1.92903199]
[1757950752875,0.002,114790.0,114780.0,2.28983199]
[1757950753079,0.002,114790.0,114780.0,1.98983199]
[1757950753369,0.002,114790.0,114780.0,2.25983199]
[1757950753571,0.002,114790.0,114780.0,2.59692469]
[1757950753772,0.002,114790.0,114780.0,2.94139713]
[1757950754671,0.002,114790.0,114780.0,2.96098427]
[1757950754976,0.002,114790.0,114780.0,2.02681157]
[1757950755176,0.002,114790.0,114780.0,2.87381157]
[1757950755469,0.01748228,114800.0,114780.0,2.96980409]
[1757950755470,0.0001,114800.0,114780.0,2.96980409]
[1757950755676,0.0001,114800.0,114790.0,1.16736998]
[1757950755976,0.0001,114810.0,114800.0,0.03081]
[1757950756171,0.37392,114820.0,114800.0,2.20114732]
[1757950756376,0.3959,114820.0,114810.0,0.36586244]
[1757950756574,0.3958,114820.0,114810.0,1.21270244]
[1757950758075,0.37582,114820.0,114810.0,1.21760244]
[1757950758275,0.002,114820.0,114810.0,0.71523488]
[1757950758473,0.002,114820.0,114810.0,2.45271488]
[1757950758669,0.002,114820.0,114810.0,2.53978478]
[1757950758983,0.004,114820.0,114810.0,2.45263488]
[1757950759883,0.002,114820.0,114810.0,2.45263488]
[1757950760176,0.003,114820.0,114810.0,2.45263488]
[1757950760570,0.001,114820.0,114810.0,2.45263488]
[1757950760877,0.002,114820.0,114810.0,2.45263488]
[1757950761472,0.001,114820.0,114810.0,2.45263488]
[1757950761672,0.0001,114830.0,114810.0,2.45235488]
[1757950761873,0.0001,114830.0,114820.0,1.07113488]
[1757950762073,0.01312,114840.0,114820.0,1.36113488]
[1757950762276,0.0351,114840.0,114830.0,1.21214244]
[1757950762479,0.035,114840.0,114830.0,1.21214244]
[1757950762878,0.035,114840.0,114830.0,1.55661488]
[1757950763179,0.035,114840.0,114830.0,1.55657488]
[1757950763573,0.035,114840.0,114830.0,1.60657488]
[1757950763574,0.02398,114840.0,114830.0,1.60657488]
[1757950763883,0.002,114840.0,114830.0,1.56758]
[1757950764082,0.004,114840.0,114830.0,2.32642285]
[1757950764581,0.004,114840.0,114830.0,2.04642285]
[1757950764770,0.004,114840.0,114830.0,2.31642285]
[1757950764975,0.004,114840.0,114830.0,2.32492135]
[1757950765177,0.002,114840.0,114830.0,2.32492135]
[1757950765477,0.003,114840.0,114830.0,0.78973647]
[1757950765781,0.003,114840.0,114830.0,2.32456135]
[1757950765977,0.001,114840.0,114830.0,2.32456135]
[1757950766175,0.002,114840.0,114830.0,1.47868135]
[1757950766376,0.002,114840.0,114830.0,2.32448135]
[1757950766784,0.01366,114840.0,114830.0,2.31529135]
[1757950766984,0.01466,114840.0,114830.0,1.46953135]
[1757950767277,0.26466,114840.0,114830.0,1.11656041]
[1757950767484,0.28573,114840.0,114830.0,1.33148041]
[1757950767680,0.99100244,114840.0,114830.0,1.28144041]
[1757950767885,0.99100244,114840.0,114830.0,1.28140041]
[1757950768880,0.64653,114840.0,114830.0,1.28140041]
[1757950769282,0.39653,114840.0,114830.0,1.62587285]
[1757950769580,0.03573,114840.0,114830.0,1.62587285]
[1757950769785,0.03573,114840.0,114830.0,0.78023285]
[1757950769990,0.03573,114840.0,114830.0,1.28120041]
[1757950770287,0.03573,114840.0,114830.0,1.62567285]
[1757950772280,0.03573,114840.0,114830.0,1.98647285]
[1757950774488,0.03573,114840.0,114830.0,2.00647285]
[1757950775086,0.03573,114840.0,114830.0,1.16103285]
[1757950775290,0.03573,114840.0,114830.0,1.30064041]
[1757950775882,0.03573,114840.0,114830.0,0.95616797]
[1757950776086,0.03573,114840.0,114830.0,1.30020274]
[1757950778096,0.02307,114840.0,114830.0,0.74532274]
[1757950778287,0.02307,114840.0,114830.0,1.95072274]
[1757950779191,0.02307,114840.0,114830.0,1.60668797]
[1757950779390,0.02307,114840.0,114830.0,1.95072274]
[1757950779792,0.02307,114840.0,114830.0,1.60668797]
[1757950780000,0.02307,114840.0,114830.0,1.95072274]
[1757950780595,0.002,114840.0,114830.0,1.95072274]
[1757950781295,0.002,114840.0,114830.0,2.29475751]
[1757950781490,0.002,114840.0,114830.0,2.38181251]
[1757950782194,0.002,114840.0,114830.0,2.40223699]
[1757950782696,0.002,114840.0,114830.0,2.65223699]
[1757950787495,0.002,114840.0,114830.0,2.65131699]
[1757950788897,0.002,114840.0,114830.0,1.80763699]
[1757950789097,0.002,114840.0,114830.0,1.72058199]
[1757950789299,0.002,114840.0,114830.0,2.56410199]
[1757950789801,0.002,114840.0,114830.0,3.99406199]
[1757950789995,0.0001,114850.0,114840.0,0.1172474]
[1757950790298,0.0001,114860.0,114850.0,0.02768]
[1757950790494,0.05254425,114870.0,114850.0,1.87591477]
[1757950790696,0.07361425,114870.0,114860.0,0.36681477]
[1757950790895,0.32351425,114870.0,114860.0,0.38681477]
[1757950791094,0.07351425,114870.0,114860.0,0.38681477]
[1757950792099,0.07951425,114870.0,114860.0,0.38681477]
[1757950793100,0.07951425,114870.0,114860.0,1.22997477]
[1757950793400,0.07951425,114870.0,114860.0,1.22989477]
[1757950793596,0.08830382,114870.0,114860.0,0.04278]
[1757950793797,1.41842639,114870.0,114850.0,0.0001]
[1757950794002,0.73884477,114860.0,114850.0,0.04137]
[1757950794190,0.73884477,114860.0,114850.0,0.04127]
[1757950794191,0.76059486,114860.0,114850.0,0.04127]
[1757950794802,0.76059486,114860.0,114850.0,0.02127]
[1757950794994,0.01276,114850.0,114840.0,1.18713477]
[1757950795195,0.03451009,114850.0,114840.0,1.26703477]
[1757950795396,0.05576009,114850.0,114840.0,0.94427]
[1757950795902,0.05576009,114850.0,114840.0,0.94411]
[1757950797000,0.39979486,114850.0,114840.0,0.94411]
[1757950797388,0.64979486,114850.0,114840.0,0.10127]
[1757950797593,1.01059486,114850.0,114840.0,0.92268]
[1757950797801,1.01059486,114850.0,114840.0,0.94387]
[1757950797802,1.01159486,114850.0,114840.0,0.94387]
[1757950798005,1.01259486,114850.0,114840.0,0.94387]
[1757950798298,1.01259486,114850.0,114840.0,0.88387]
[1757950799499,0.66856009,114850.0,114840.0,0.88387]
[1757950799697,0.66856009,114850.0,114840.0,1.22790477]
[1757950799897,0.66856009,114850.0,114840.0,0.88387]
[1757950800603,0.66856009,114850.0,114840.0,0.86387]